Cogmind - Beta 15 @@@ ROGUE MODE // 2025.05.24 @ 01:51:26 Player: jumpy Result: Destroyed by P-80 Master with Gamma Rifle Performance ------------- Evolutions (7) 3500 Regions Visited (9) 1800 Robots Destroyed (35) 175 Value Destroyed (1252) 1252 Prototype IDs (15) 300 Alien Tech Used (0) 0 Bonus (459) 459 TOTAL SCORE: 7486 Bonus ------- Follower Combat Kills 159 Registered with UFD 300 Cogmind --------- Core Integrity 0/1300 Matter 231/300 Energy 100/100 System Corruption 3% Temperature Cool (0) Movement Flying (45) Location -3/Research Parts ------- > --- POWER (1) -------- (None) > --- PROPULSION (8) --- Electron Diverter Impulse Thruster Array > --- UTILITY (10) ----- Advanced Signal Interpreter Improved System Shield A0-MCA's Component Scanner > --- WEAPON (2) ------- (None) > --- INVENTORY (5) ---- Heavy Antimatter Reactor Compact HERF Cannon Railgun Plasma Sword Botcube Peak State ------------ > --- POWER ------------ Neutrino Core > --- PROPULSION ------- Improved Linear Gravjet Improved Linear Gravjet Antigrav Array > --- UTILITY ---------- Advanced Signal Interpreter Advanced Terrain Scan Processor Improved System Shield A0-MCA's Component Scanner > --- WEAPON ----------- (None) > --- INVENTORY -------- Heavy Antimatter Reactor Compact HERF Cannon Railgun Botcube [Rating: 62] Favorites ----------- Power Light Fission Core Engine Ion Engine Power Core Light Fission Core Propulsion Light Treads Treads Light Treads Leg Carbon-fiber Leg Wheel Wheel Hover Unit Improved Antigrav System Flight Unit Field Propulsion Drive Utility Seismic Detector Device Seismic Detector Storage Small Storage Unit Processor A0-MCA's Component Scanner Hackware Improved System Shield Protection Hardened Light Armor Plating Weapon High-powered Shotgun Energy Gun Medium Laser Energy Cannon Compact HERF Cannon Ballistic Gun High-powered Shotgun Ballistic Cannon Bore Cannon Launcher Improved Grenade Launcher Special Weapon Flamer Impact Weapon Thunder Hammer Piercing Weapon Spear Special Melee Weapon Advanced Datajack Build | -11 -10 -10 -9 -9 -6 -5 -5 -4 -3 ------- Run | Yrd Mat Sub Rec Scr Fac Fac Ext Fac Res Slots Evolved 14 | . . . . . 8 2 . 2 2 Power . | . . . . . . . . . . Propulsion 6 | . . . . . 2 2 . 2 . Utility 8 | . . . . . 6 . . . 2 Weapon . | . . . . . . . . . . Parts Attached 73 | 7 . 5 . 9 11 11 14 5 11 Power 10 | 1 . 2 . 2 1 1 2 . 1 Engine 4 | 1 . 2 . 1 . . . . . Core 6 | . . . . 1 1 1 2 . 1 Reactor . | . . . . . . . . . . Propulsion 24 | 2 . 1 . 2 4 2 5 3 5 Treads 6 | 2 . . . . 4 . . . . Leg 4 | . . . . . . . 4 . . Wheel 4 | . . 1 . 2 . 1 . . . Hover 5 | . . . . . . . . 2 3 Flight 5 | . . . . . . 1 1 1 2 Utility 19 | 2 . . . 3 5 3 2 1 3 Device 7 | 1 . . . 1 2 2 . . 1 Storage 3 | 1 . . . 2 . . . . . Processor 7 | . . . . . 2 1 2 . 2 Hackware 1 | . . . . . . . . 1 . Protection 1 | . . . . . 1 . . . . Artifact . | . . . . . . . . . . Weapon 20 | 2 . 2 . 2 1 5 5 1 2 Energy Gun 6 | 2 . 1 . . . . 3 . . Energy Cannon 1 | . . . . . . . . . 1 Ballistic Gun 5 | . . 1 . 2 . . 1 . 1 Ballistic Cannon 2 | . . . . . . 1 1 . . Launcher 1 | . . . . . . 1 . . . Special Weapon 1 | . . . . . . 1 . . . Impact Weapon 1 | . . . . . . 1 . . . Slashing Weapon . | . . . . . . . . . . Piercing Weapon 2 | . . . . . 1 1 . . . Special Melee Weapon 1 | . . . . . . . . 1 . Unidentified Prototypes 1 | . . . . . . 1 . . . Parts Lost 51 | . . 7 . . 12 11 7 5 9 Power 7 | . . 2 . . 2 1 1 . 1 Propulsion 20 | . . 2 . . 4 4 3 4 3 Utility 11 | . . 1 . . 3 2 . . 5 Weapon 13 | . . 2 . . 3 4 3 1 . Highest Loss Streak 11 | . . 6 . . 9 11 7 3 5 To Critical Strikes 1 | . . . . . . 1 . . . Average Backups 8 | 4 7 6 5 12 14 8 2 2 3 Power 1 | . 1 . 1 2 2 2 1 2 1 Propulsion 1 | 1 2 1 . 1 2 . . . . Utility 3 | . 2 2 3 5 5 4 . . . Weapon 2 | 1 2 1 1 3 3 1 . . 1 Tool/Special . | . . . . . . . . . . Unused Backups 13 | . 2 1 . 3 1 3 . . 3 Power 3 | . . . . . 1 . . . 2 Propulsion 3 | . 2 1 . . . . . . . Utility 5 | . . . . 2 . 3 . . . Weapon 2 | . . . . 1 . . . . 1 Tool/Special . | . . . . . . . . . . Average Slot Usage (%) 75 | . 100 95 42 92 85 48 39 33 28 Engine 5 | . 14 12 . 5 1 . . . . Core 3 | . . . . 7 4 3 3 . . Treads 8 | . 28 25 . . 24 . . . . Leg 1 | . . . . . . . 8 . . Wheel 10 | . . 1 14 24 . 11 . . . Device 10 | . 14 13 . 13 16 7 . . 1 Storage 9 | . 14 14 14 14 6 4 . . . Processor 6 | . . . . . 12 13 18 21 20 Energy Gun 6 | . 28 26 . . . . 3 . . Ballistic Gun 10 | . . 1 14 24 11 . . . . Peak Build Rating 62 | 7 8 10 4 22 50 54 49 53 62 Average Rating 21 | 6 7 7 4 16 46 43 33 35 35 On Entrance 13 | . 7 7 4 4 22 27 14 26 25 Naked Turns . | . . . . . . . . . . Heaviest Build 65 | 14 14 17 6 60 61 65 28 1 14 Greatest Support 86 | 40 40 40 3 22 86 50 60 15 46 Greatest Overweight (x) 4 | . . 1 1 2 3 4 3 . 2 Average Overweight (x) . | . . . 1 1 . 1 . . . Largest Inventory Capacity 20 | 8 8 8 8 20 20 20 5 5 5 Average Capacity 11 | 7 8 8 8 16 20 19 5 5 5 Most Carried 20 | 7 8 8 6 20 20 14 5 4 5 Average Carried 9 | 4 7 7 6 13 15 9 3 3 4 Final Capacity 20 | 8 8 8 8 20 20 5 5 5 5 Final Carried 20 | 7 7 6 6 20 14 5 3 4 5 Class Distribution -------------------- 74% | Mutant 13% | Derelict-Mutant 4% | Derelict-Skirmisher 3% | Commander-Mutant Dominant Class ---------------- Mutant | -10/Materials Mutant | -10/Subcaves Mutant | -9/Recycling Mutant | -9/Scraptown Derelict-Skirmisher | -6/Factory Mutant | -5/Factory Mutant | -5/Extension Mutant | -4/Factory Mutant | -3/Research Resources | -11 -10 -10 -9 -9 -6 -5 -5 -4 -3 ----------- Run | Yrd Mat Sub Rec Scr Fac Fac Ext Fac Res Matter Collected 1182 | 270 . 39 . 80 198 51 415 . 129 Remotely . | . . . . . . . . . . Salvage Created 1610 | 212 140 247 . . 401 16 594 . . Parts 65 | 18 4 17 . . 14 . 12 . . Haulers Intercepted . | . . . . . . . . . . Recyclers Shooed 2 | 1 . . . . . . 1 . . Parts Field Recycled . | . . . . . . . . . . Retrieved Matter . | . . . . . . . . . . Parts Self-Destructed 14 | . . 14 . . . . . . . Prevented . | . . . . . . . . . . Kills | -11 -10 -10 -9 -9 -6 -5 -5 -4 -3 ------- Run | Yrd Mat Sub Rec Scr Fac Fac Ext Fac Res Combat Hostiles Destroyed 24 | . 3 6 . . 8 1 6 . . Melee 1 | . . . . . 1 . . . . Guns 19 | . 3 6 . . 7 . 3 . . Cannons 4 | . . . . . . 1 3 . . Classes Destroyed 8 | 2 1 3 . . . 1 1 . . Tunneler 7 | 7 . . . . . . . . . Recycler 2 | 1 . . . . . . 1 . . Turret 2 | . . 2 . . . . . . . Swarmer 3 | . . 3 . . . . . . . Grunt 15 | . 3 2 . . 8 . 2 . . Sentry 4 | . . . . . . 1 3 . . Behemoth 1 | . . . . . . . 1 . . Subdweller 1 | . . 1 . . . . . . . Best Kill Streak 4 | 3 2 4 . . 4 1 2 . . Combat Bots Only 4 | . 2 3 . . 4 1 2 . . Max Kills in Single Turn 2 | 1 1 2 . . 1 1 2 . . Gunslinging 1 | . . 1 . . . . . . . Exploded . | . . . . . . . . . . Melee 1 | . . . . . 1 . . . . Uniques/NPCs Destroyed . | . . . . . . . . . . Combat | -11 -10 -10 -9 -9 -6 -5 -5 -4 -3 -------- Run | Yrd Mat Sub Rec Scr Fac Fac Ext Fac Res Hostile Shots Fired 736 | . 19 145 . . 150 81 76 109 156 Missed 247 | . 3 46 . . 39 19 23 44 73 Hits 489 | . 16 99 . . 111 62 53 65 83 Melee 1 | . . . . . . . . 1 . Projectile 488 | . 16 99 . . 111 62 53 64 83 Critical Strikes 22 | . . . . . 5 6 2 5 4 Damage Taken 8245 | . 215 773 . . 1579 1361 1114 1214 1989 Core 3643 | . 12 217 . . 324 531 384 860 1315 Absorbed by Shields . | . . . . . . . . . . Core Remaining (%) 40 | 100 . . . 8 61 . 8 25 . Volleys Fired 149 | 23 12 30 . . 24 20 36 . 4 Largest 2 | 2 2 2 . . 2 1 2 . 1 Hottest 129 | 90 90 110 . . 48 100 129 . 94 Shots Fired 249 | 46 24 52 . . 45 20 58 . 4 Gun 205 | 46 24 52 . . 45 . 35 . 3 Cannon 41 | . . . . . . 17 23 . 1 Launcher 1 | . . . . . . 1 . . . Special 2 | . . . . . . 2 . . . Kinetic 111 | . . 14 . . 45 17 32 . 3 Thermal 136 | 46 24 38 . . . 2 26 . . Explosive 1 | . . . . . . 1 . . . Electromagnetic 1 | . . . . . . . . . 1 Robot Hit Streak 10 | 10 8 5 . . 10 4 7 . 4 Robot Miss Streak 5 | 5 2 5 . . 3 1 5 . 1 Penetration Max 1 | . . . . . . . 1 . . Secondary Targets 1 | . . 1 . . . . . . . Max Gunslinging Chain 1 | . . 1 . . . . . . . Shots Hit Robots 171 | 23 18 30 . . 44 17 37 . 2 Core Hits 76 | 9 7 16 . . 27 4 13 . . Critical Kills 4 | . . . . . . . 4 . . Critical Parts Destroyed 6 | . . . . . . . 6 . . Critical Strikes 17 | 1 . 1 . . . . 15 . . Burn 4 | 1 . 1 . . . . 2 . . Destroy 13 | . . . . . . . 13 . . Melee Attacks 4 | . . . . . 3 1 . . . Impact . | . . . . . . . . . . Slashing . | . . . . . . . . . . Piercing 4 | . . . . . 3 1 . . . Sneak Attacks . | . . . . . . . . . . Combat Hostiles . | . . . . . . . . . . Follow-up Attacks . | . . . . . . . . . . Damage Inflicted 3246 | 269 216 405 . . 877 458 947 8 66 Guns 2312 | 269 213 405 . . 746 . 623 . 56 Cannons 691 | . . . . . . 388 303 . . Explosions 6 | . . . . . . 6 . . . Melee 131 | . . . . . 99 32 . . . Ramming 85 | . 3 . . . 32 11 21 8 10 Kinetic 1720 | . . 58 . . 746 388 472 . 56 Thermal 1304 | 269 213 347 . . . 21 454 . . Explosive 6 | . . . . . . 6 . . . Electromagnetic . | . . . . . . . . . . Impact . | . . . . . . . . . . Slashing . | . . . . . . . . . . Piercing 131 | . . . . . 99 32 . . . Highest Corruption 4 | . . . . . 4 4 4 1 3 Average Corruption 3 | . . . . . 4 4 4 1 1 Corruption Purged . | . . . . . . . . . . Corruption Blocked . | . . . . . . . . . . Effects 21 | . . . . . 5 2 14 . . Message Errors 9 | . . . . . 1 1 7 . . Matter Fused 3 | . . . . . . . 3 . . Heat Flow Errors 2 | . . . . . 1 . 1 . . Parts Rejected 1 | . . . . . 1 . . . . Data Loss (minor) 4 | . . . . . 1 1 2 . . Data Loss (major) 2 | . . . . . 1 . 1 . . Overload Shots . | . . . . . . . . . . Overflow Damage . | . . . . . . . . . . Projectiles . | . . . . . . . . . . Explosions . | . . . . . . . . . . Melee . | . . . . . . . . . . Knockbacks 2 | . . . . . . . 1 . 1 Impact 1 | . . . . . . . . . 1 Kinetic 1 | . . . . . . . 1 . . Secondary . | . . . . . . . . . . Self-Inflicted Damage 30 | . . . . . 6 5 10 4 5 Shots . | . . . . . . . . . . Rammed 11 | . 2 . . . 4 1 2 1 1 Targets Rammed 12 | . 2 . . . 4 1 3 1 1 Kicked 1 | . . . . . . . 1 . . Crushed . | . . . . . . . . . . Highest Temperature 332 | 120 224 38 . . 182 24 332 20 2 Average Temperature 81 | 45 116 19 . . 35 10 124 20 1 Received Heat Transfer 2337 | . 117 474 . . 615 354 539 136 102 Effects 3 | . . . . . . . 3 . . Energy Bleed 3 | . . . . . . . 3 . . Siege Activations . | . . . . . . . . . . Martial Activations . | . . . . . . . . . . Shielding Activations . | . . . . . . . . . . Robots Disrupted . | . . . . . . . . . . Combat Hostiles . | . . . . . . . . . . Robots Corrupted . | . . . . . . . . . . Combat Hostiles . | . . . . . . . . . . Parts Fried . | . . . . . . . . . . Impact Corruptions . | . . . . . . . . . . Robots Melted . | . . . . . . . . . . Combat Hostiles . | . . . . . . . . . . Parts Melted 7 | 2 1 2 . . . . 2 . . Heat Transferred 3107 | 793 558 745 . . . 160 851 . . Parts Sabotaged . | . . . . . . . . . . Parts Stolen . | . . . . . . . . . . Parts Stripped . | . . . . . . . . . . Power Chain Reactions . | . . . . . . . . . . Alert | -11 -10 -10 -9 -9 -6 -5 -5 -4 -3 ------- Run | Yrd Mat Sub Rec Scr Fac Fac Ext Fac Res Maximum Alert Level . | . . . . . . . . . . Low Security (%) 100 | 100 100 . 100 . 100 100 100 100 100 Level 1 . | . . . . . . . . . . Level 2 . | . . . . . . . . . . Level 3 . | . . . . . . . . . . Level 4 . | . . . . . . . . . . Level 5 . | . . . . . . . . . . High Security . | . . . . . . . . . . Max Security . | . . . . . . . . . . Peak Influence 130 | 10 40 . 76 . 110 32 119 130 130 Initial 76 | . . . 76 . . 1 2 17 47 Average 20 | 1 12 . 53 . 24 3 31 33 20 Influence Increases 1581 | 40 146 300 . . 220 84 398 214 179 Destroy 0b10 Robot/C 580 | . 60 140 . . 160 20 200 . . Destroy 0b10 Robot/NC 45 | 40 . . . . . . 5 . . Destroy Leader 80 | . 10 10 . . 30 10 20 . . Allied During Kill 44 | . . . . . . . 44 . . Successful Hack 71 | . 16 . . . . . 37 4 14 Select Force Hacks 30 | . 30 . . . . . . . . Disable Machine 45 | . . . . . . 15 15 . 15 Destroy Structure 56 | . . . . . . 24 32 . . Partial Spotted 15 | . . . . . . 15 . . . Lose Combat Pursuer 615 | . 30 150 . . 30 . 45 210 150 Influence Decreases 1461 | 40 132 154 134 26 216 83 367 160 149 Entered New Map 185 | . . 7 84 26 . 3 3 19 43 Time Decay 864 | 40 132 87 50 . 96 48 214 91 106 Lost Part 322 | . . 60 . . 120 32 60 50 . Lost Ally 90 | . . . . . . . 90 . . Squads Dispatched 13 | . 2 . . . 4 1 2 1 3 Investigation 5 | . 2 . . . 1 . 2 . . Extermination 4 | . . . . . 1 1 . 1 1 Reinforcement 4 | . . . . . 2 . . . 2 Assault . | . . . . . . . . . . Garrison . | . . . . . . . . . . Intercept . | . . . . . . . . . . Searches Triggered . | . . . . . . . . . . Construction Impeded 1 | . . . . . 1 . . . . Haulers Reinforced . | . . . . . . . . . . Active Scanning Responses . | . . . . . . . . . . Cargo Convoy Interrupts . | . . . . . . . . . . Stealth | -11 -10 -10 -9 -9 -6 -5 -5 -4 -3 --------- Run | Yrd Mat Sub Rec Scr Fac Fac Ext Fac Res Distress Signals 4 | . . . . . 1 . . 1 2 Communications Jammed . | . . . . . . . . . . Distress Signals . | . . . . . . . . . . Times Spotted 125 | . 6 13 . . 20 20 18 25 23 Peak Tracking Total 18 | . 2 6 . . 7 18 5 11 12 Tactical Retreats 16 | . 2 5 . . 2 . 1 4 2 Traps | -11 -10 -10 -9 -9 -6 -5 -5 -4 -3 ------- Run | Yrd Mat Sub Rec Scr Fac Fac Ext Fac Res Traps Triggered 5 | . 1 . . . 1 1 . 2 . Indirectly . | . . . . . . . . . . Trap Hack Attempts 1 | . . . . . . . . 1 . Triggered . | . . . . . . . . . . Disarmed 18 | . . . . . . . 18 . . Reprogrammed . | . . . . . . . . . . Reused . | . . . . . . . . . . Traps Extracted . | . . . . . . . . . . Installed . | . . . . . . . . . . Triggered . | . . . . . . . . . . Machines | -11 -10 -10 -9 -9 -6 -5 -5 -4 -3 ---------- Run | Yrd Mat Sub Rec Scr Fac Fac Ext Fac Res Machines Disabled 4 | . . . . . . 1 2 . 1 Max in Single Turn 1 | . . . . . . 1 1 . 1 Machines Repaired . | . . . . . . . . . . Machines Dismantled . | . . . . . . . . . . Machines Sabotaged . | . . . . . . . . . . Overloaded Fab Kills . | . . . . . . . . . . Hacking | -11 -10 -10 -9 -9 -6 -5 -5 -4 -3 --------- Run | Yrd Mat Sub Rec Scr Fac Fac Ext Fac Res Machines Accessed 18 | . 4 . . . 1 1 9 1 2 Terminals 15 | . 3 . . . . 1 9 1 1 Fabricators 1 | . . . . . . . . . 1 Repair Stations . | . . . . . . . . . . Recycling Units 2 | . 1 . . . 1 . . . . Scanalyzers . | . . . . . . . . . . Garrison Access . | . . . . . . . . . . Total Hacks 36 | . 6 . . . 1 1 22 2 4 Successful 19 | . 4 . . . 1 1 10 2 1 Failed 17 | . 2 . . . . . 12 . 3 Catastrophic 3 | . 1 . . . . . 1 . 1 Database Lockouts . | . . . . . . . . . . Manual 18 | . 6 . . . 1 . 8 2 1 Terminals 32 | . 5 . . . . 1 22 2 2 Fabricators 2 | . . . . . . . . . 2 Repair Stations . | . . . . . . . . . . Recycling Units 2 | . 1 . . . 1 . . . . Scanalyzers . | . . . . . . . . . . Garrison Access . | . . . . . . . . . . Terminal Hacks 10 | . . . . . . 1 8 . 1 Record 1 | . . . . . . . . . 1 Robot Analysis 1 | . . . . . . . 1 . . Open Door 5 | . . . . . . 1 4 . . Disarm Traps 3 | . . . . . . . 3 . . Fabricator Hacks . | . . . . . . . . . . Repair Station Hacks . | . . . . . . . . . . Recycling Unit Hacks . | . . . . . . . . . . Scanalyzer . | . . . . . . . . . . Garrison Access Hacks . | . . . . . . . . . . Unauthorized Hacks 9 | . 4 . . . 1 . 2 2 . Terminals 7 | . 3 . . . . . 2 2 . Assimilate 2 | . . . . . . . 2 . . Botnet 2 | . 1 . . . . . . 1 . Skim 3 | . 2 . . . . . . 1 . Fabricators . | . . . . . . . . . . Repair Stations . | . . . . . . . . . . Recycling Units 2 | . 1 . . . 1 . . . . Tunnel 1 | . 1 . . . . . . . . Fedlink 1 | . . . . . 1 . . . . Scanalyzers . | . . . . . . . . . . Garrison Access . | . . . . . . . . . . Data Cores Recovered . | . . . . . . . . . . Used . | . . . . . . . . . . Hacking Detections 11 | . 1 . . . . . 8 . 2 Full Trace Events 2 | . . . . . . . 2 . . Feedback Events . | . . . . . . . . . . Feedback Blocked . | . . . . . . . . . . Robot Schematics Acquired . | . . . . . . . . . . Robots Built . | . . . . . . . . . . Authchips . | . . . . . . . . . . Time . | . . . . . . . . . . Total Robot Build Rating . | . . . . . . . . . . Part Schematics Acquired . | . . . . . . . . . . Parts Built . | . . . . . . . . . . Authchips . | . . . . . . . . . . Time . | . . . . . . . . . . Total Part Build Rating . | . . . . . . . . . . Parts Repaired . | . . . . . . . . . . Time . | . . . . . . . . . . Parts Recycled . | . . . . . . . . . . Recycled Matter . | . . . . . . . . . . Retrieved Matter . | . . . . . . . . . . Retrieved Components . | . . . . . . . . . . Parts Scanalyzed . | . . . . . . . . . . Part Schematics Acquired . | . . . . . . . . . . Parts Damaged . | . . . . . . . . . . Bothacking | -11 -10 -10 -9 -9 -6 -5 -5 -4 -3 ------------ Run | Yrd Mat Sub Rec Scr Fac Fac Ext Fac Res Used RIF Installer . | . . . . . . . . . . Robots Hacked . | . . . . . . . . . . Non-combat . | . . . . . . . . . . Combat . | . . . . . . . . . . Robot Hacks Applied . | . . . . . . . . . . Relay Couplers Released . | . . . . . . . . . . Fabnet Peak Effective % . | . . . . . . . . . . Robots Rewired 3 | . . . . . . . 3 . . Allies Hacked . | . . . . . . . . . . Hacks Repelled . | . . . . . . . . . . Allies | -11 -10 -10 -9 -9 -6 -5 -5 -4 -3 -------- Run | Yrd Mat Sub Rec Scr Fac Fac Ext Fac Res Total Allies 8 | . . . . . . . 8 . . Largest Group 6 | . . . . . . . 6 . . Highest-Rated Group 295 | . . . . . . . 295 . . Highest-Rated Ally 159 | . . . . . . . 159 . . Total Orders . | . . . . . . . . . . Ally Attacks 43 | . . . . . . . 43 . . Total Damage 1036 | . . . . . . . 1036 . . Kills 5 | . . . . . . . 5 . . Allies Corrupted . | . . . . . . . . . . Allies Melted 1 | . . . . . . . 1 . . Intel | -11 -10 -10 -9 -9 -6 -5 -5 -4 -3 ------- Run | Yrd Mat Sub Rec Scr Fac Fac Ext Fac Res Active Infowar (turns) 5319 | 189 428 834 . 1927 427 395 624 235 260 Optics 1400 | . . . . . . 282 624 235 259 Sensors 379 | . . . . . 278 . . . 101 Terrain 725 | . . . . . 421 304 . . . Seismic 3790 | 189 428 834 . 1927 412 . . . . Robot Analysis Total 1 | . . . . . . . 1 . . Derelict Logs Recovered . | . . . . . . . . . . Drone Launches . | . . . . . . . . . . Drone Recoveries . | . . . . . . . . . . Exploration | -11 -10 -10 -9 -9 -6 -5 -5 -4 -3 ------------- Run | Yrd Mat Sub Rec Scr Fac Fac Ext Fac Res Turns Passed 5697 | 289 428 886 106 1943 427 395 624 235 364 Spaces Moved 4832 | 128 232 491 105 1833 194 304 586 419 540 Core 817 | 2 . 17 105 17 . 32 183 103 358 Treads 1022 | 126 232 474 . . 190 . . . . Legs 207 | . . . . . . . 207 . . Wheels 2079 | . . . . 1816 4 259 . . . Hover 75 | . . . . . . . . 17 58 Flight 632 | . . . . . . 13 196 299 124 Fastest Speed 38 | 50 160 100 100 80 135 40 45 40 38 Average Speed 100 | 158 160 157 100 103 159 103 74 46 49 Slowest Speed 200 | 160 160 160 100 150 160 150 200 60 150 Overloaded Moves . | . . . . . . . . . . Propulsion Burnouts . | . . . . . . . . . . Robots Hopped 21 | . . . . . . 2 2 7 10 Potential Cave-ins . | . . . . . . . . . . Cave-ins Triggered . | . . . . . . . . . . Exploration Rate (%) 29 | 7 34 30 22 88 8 12 51 24 14 Regions Visited 9 Branch Regions 4 Pre-discovered Areas 1 | . 1 . . . . . . . . Known Exits Taken . | . . . . . . . . . . Unknown Exits Taken 9 | 1 1 1 1 1 1 1 1 1 . Scrap Searched 11 | . . . . 11 . . . . . Spaces Dug . | . . . . . . . . . . Terrain Destroyed 17 | . . . . . . 12 5 . . Melee . | . . . . . . . . . . Projectile 6 | . . . . . . 1 5 . . AOE 11 | . . . . . . 11 . . . Terrain Rammed . | . . . . . . . . . . Walls Destroyed . | . . . . . . . . . . Machines Disabled . | . . . . . . . . . . Actions | -11 -10 -10 -9 -9 -6 -5 -5 -4 -3 --------- Run | Yrd Mat Sub Rec Scr Fac Fac Ext Fac Res Total 5365 | 166 265 552 106 1873 264 357 712 449 621 Wait 209 | . 16 24 2 3 21 17 30 27 69 Move 4784 | 127 231 490 104 1832 194 300 581 404 521 Hop 19 | . . . . . . 1 2 7 9 Pick Up 42 | 9 2 1 . 20 2 1 2 2 3 Fast Attach 40 | 5 . . . 4 2 6 9 6 8 Attach 29 | 2 . 3 . . 11 6 4 . 3 Detach 4 | . . . . . 2 . . . 2 Swap 9 | . . 2 . 5 1 . 1 . . Drop 23 | . 2 2 . 9 1 4 3 1 1 Fire 149 | 23 12 30 . . 24 20 36 . 4 Melee 4 | . . . . . 3 1 . . . Ram 5 | . . . . . . 1 2 1 1 Kick 1 | . . . . . . . 1 . . Crush 5 | . 2 . . . 3 . . . . Escape Stasis . | . . . . . . . . . . Rewire 41 | . . . . . . . 41 . . Trap 1 | . . . . . . . . 1 . Miscellaneous . | . . . . . . . . . . Route ------- -11/Scrapyard -10/Materials (discovered 2 exits: [*Min] / [*Sub]) -10/Subcaves -9/Recycling -9/Scraptown (discovered 2 exits: *Fac x2) -6/Factory (discovered 2 exits: *Fac x2) -5/Factory -5/Extension -4/Factory -3/Research (discovered 1 exit: *Tes) History --------- Turn | Location | Event 25 | -11/Scrapyard | Discovered new exit (range 16) 290 | -11/Scrapyard | Entered Materials 310 | -10/Materials | Build established: Mutant 335 | -10/Materials | Discovered new exit (range 10) 707 | -10/Materials | Discovered new exit (range 8) 718 | -10/Materials | Entered Subcaves 719 | -10/Subcaves | Approached by a straggling Scientist 1535 | -10/Subcaves | Core integrity fell below 50% 1565 | -10/Subcaves | Core integrity fell below 20% 1573 | -10/Subcaves | Discovered new exit (range 16) 1587 | -10/Subcaves | Lost 6 parts (1p2n1u2w) 1604 | -10/Subcaves | Entered Recycling 1605 | -9/Recycling | Met a Zionite searching for Scraptown 1664 | -9/Recycling | Scanned before Scraplab entrance 1700 | -9/Recycling | Entered Scraplab 1708 | -9/Recycling | Discovered new exit (range 3) 1710 | -9/Recycling | Entered Scraptown 1886 | -9/Scraptown | Discovered new exit (range 11) 1985 | -9/Scraptown | Visited Cyclists 2006 | -9/Scraptown | Visited The Evicted 2013 | -9/Scraptown | Visited Spacefarers 2208 | -9/Scraptown | Visited TADAMA 2249 | -9/Scraptown | Visited Bundlers 2396 | -9/Scraptown | Visited SPCMW 2553 | -9/Scraptown | Visited UFD Registry 2557 | -9/Scraptown | Registered with UFD as "Arcroller" 2581 | -9/Scraptown | Visited Junk Repository 2638 | -9/Scraptown | Visited Abandonware Association 2649 | -9/Scraptown | Learned abandonware demo "OVRCLOCK.EXE" 2704 | -9/Scraptown | Delivered Scrap Shield to a Scientist 2849 | -9/Scraptown | Visited Junk Repository 2897 | -9/Scraptown | Visited Research Penetration Think Tank 2945 | -9/Scraptown | Visited Botcube Research 2952 | -9/Scraptown | Found Botcube 3012 | -9/Scraptown | Visited DA-N13 Charitable Foundation 3025 | -9/Scraptown | Found DCF Scrap (27 items) 3080 | -9/Scraptown | Visited A0-MCA Data Center 3087 | -9/Scraptown | Given a B+ rating by A0-MCA 3092 | -9/Scraptown | Found A0-MCA's Component Scanner 3121 | -9/Scraptown | Visited Science Guys 3334 | -9/Scraptown | Build established: Derelict-Mutant 3334 | -9/Scraptown | Visited Cartography Club 3380 | -9/Scraptown | Found Surveybot 17 Chip 3564 | -9/Scraptown | Discovered new exit (range 5) 3653 | -9/Scraptown | Entered Factory 3653 | -6/Factory | Evolved 8 slots: Propulsion x2, Utility x6 3907 | -6/Factory | Loaded intel: 8 recycling unit locations 4051 | -6/Factory | Discovered new exit (range 16) 4061 | -6/Factory | Lost 3 parts (1p1u1w) 4077 | -6/Factory | Discovered new exit (range 16) 4080 | -6/Factory | Entered another Factory area 4080 | -5/Factory | Evolved 2 slots: Propulsion x2 4108 | -5/Factory | Lost 9 parts (1p4n2u2w) 4385 | -5/Factory | Build established: Mutant 4471 | -5/Factory | Core integrity fell below 50% 4473 | -5/Factory | Discovered new exit (range 6) 4475 | -5/Factory | Entered Extension 4499 | -5/Extension | Lost 11 parts (1p4n2u4w) 4509 | -5/Extension | Rescued a captive Derelict 4727 | -5/Extension | Rescued A7 4788 | -5/Extension | Rescued a captive Derelict 4825 | -5/Extension | Spotted B-75 Beast 4878 | -5/Extension | Lost 4 allies 4895 | -5/Extension | Spotted B-75 Beast 4964 | -5/Extension | Core integrity fell below 20% 4975 | -5/Extension | Destroyed B-75 Beast 5020 | -5/Extension | Lost 7 parts (1p3n3w) 5092 | -5/Extension | Extracted ID and sensor layout for unrecognized location from A7's data core 5098 | -5/Extension | Discovered new exit (range 3) 5099 | -5/Extension | Entered Factory 5099 | -4/Factory | Evolved 2 slots: Propulsion x2 5324 | -4/Factory | Core integrity fell below 50% 5331 | -4/Factory | Discovered new exit (range 7) 5334 | -4/Factory | Entered Research 5334 | -3/Research | Evolved 2 slots: Utility x2 5358 | -3/Research | Lost 3 parts (3n) 5625 | -3/Research | Lost 4 parts (4u) 5632 | -3/Research | Spotted B-86 Titan 5643 | -3/Research | Core integrity fell below 50% 5650 | -3/Research | Discovered new exit (range 13) 5654 | -3/Research | Identified exit to Testing 5668 | -3/Research | Lost 5 parts (1p3n1u) 5674 | -3/Research | Spotted B-86 Titan 5688 | -3/Research | Core integrity fell below 20% 5698 | -3/Research | Destroyed by P-80 Master with Gamma Rifle Last Messages --------------- to Research Zone 4S. 05644_ C-30 ARC bursts open, deploying its payload. 05644_ P-80 Master unfolds itself. 05645_ Component scanned: Adv. Target Analyzer [P-80 Master]. 05650_ EXIT=FOUND 05654_ EXIT=IDENTIFIED: TESTING 05656_ P-80 Master resets P-80 Master, system corruption cleaned. 05668_ Component scanned: Neutron Missile Launcher. 05668_ Component scanned: Imp. Lightning Gun. 05672_ O-24 Administrator: "IFF HANDSHAKE FAILED. SECURING TERMINAL." 05674_ W-44 Eye sends out distress signal. 05678_ Component scanned: Plasma Sword. 05678_ Penetrated by Slug. 05678_ Slug penetrates Wall. 05678_ ALERT: Hostiles spotted, dispatching reinforcements to Terminal R012. 05680_ Acquired Plasma Sword. 05683_ Slug penetrates Wall. 05686_ Component scanned: Electron Diverter. 05688_ Acquired Electron Diverter. Map ----- +----------------------------------------------------+ | ??????????????????????????????????????????? | | ??????????????????????????????????????????? | | ??????????????????????????????????????????? | | ??????????????????????????????????????????? | | ??????????????????????????????????????????? | | ??????????????????????????????????????????? | | ??????????????????????????????????????????? | | ??????????????????????????????????????????? | | ??????????????????????????????????????????? | | ??????????????????????????????????????????? | | ??????????????????????????????????????????? | | ??????????????????????????????????????????? | | ??????????????????????????????????????????? | | ??????????????????????????????????????????? | | ??????????????????????????????????????????? | | ??????????????????????????????????????????? | | ??????????????????????????????????????????? | | ??????????????????????????????????????????? | | ??????????????????????????????????????????? | | ??????????????????????????????????????????? | | ??????????????????????????????????????????? | | ???????????????######????????######???????? | | ???????????????# #??###### #???????? | | ???????????????#] #### #???????? | | ???????????H???# sssp " +???????? | | ???????????????#= ] #### @ #???????? | | ???????????????# #??##p### #???????? | | ???????????????# !#####/###?? ###???????? | | ???????????????# ## wp #?????????????? | | ???????????????####### #?????????????? | | ?????????????????????# /!Y ##????????????? | | ?????????????????????# % ! #????#???????? | | ?????????????????????# ##??? #???????? | | ?????????????????????# !#??? #???????? | | ????????????????????#####BB#### +???????? | | ????????????????????+ BB #???????? | | ????????????????????# #???????? | | ???????????????????## ##??????? | | ???????????????????# == #??????? | | ??????????T" ###### == #??????? | | ?????????? " % u= #??????? | | ????????# ###### #??????? | | ??????????? ???????# #??????? | | ??????????# ???????###+#####" #####??????? | | ??????????# #??????# =#?# #??????????? | | ??????????# #??????# #??###??????????? | | ??????????# #??????# #???????????????? | | ??????????# #??????# #???????????????? | | ??????????# ######## !! #???????????????? | | ???###??#?# + ! #???????????????? | +----------------------------------------------------+ Best States ------------- Heat Dissipation 46 Energy Generation 21 Energy Capacity 350 Matter Stores 300 Matter Capacity 300 Sight Range 20 Robot Scan Range 16 Terrain Scan Range 16 Terrain Scan Density 1210 Armor Coverage 150 Evasion (%) 62 Targeting Accuracy 8 Recoil Reduction 4 Defensive Hacking 12 Trap Extractor Capacity 8 Item Schematics ----------------- None Robot Schematics ------------------ None Fabricated ------------ Nothing Repaired ---------- Nothing Alien Tech Used ----------------- None Achievements -------------- None Challenges ------------ None Game ------ Seed PrecisionBackupDatajack Manual? 0 Play Time 00:44:35 Cumulative 114.3 hours Start 2025.05.24 @ 01:10:58 End 2025.05.24 @ 01:51:26 Sessions 1 Manual Loads 0 Difficulty Rogue Special Mode None Game No. 293 Rogue 293 Adventurer 0 Explorer 0 Win Type - Total 2 Types 2/0/0/0/0/0/0/0/0/0 Lore% 56 Gallery% 52 Achievement% 44 Wizard Run 0 Options --------- Layout 0 ASCII 0 Keyboard 0 Movement Numpad Keybinds 0 Fullscreen 2 Font 18/Terminus Map View 76x50 Zoom Use 0% Tactical HUD 1 Map Filters NONE Filters NONE Steam 1 RUN: 4e74fd8f-dc55-4078-a8fb-c568ce96a80d